fUSD/lending_fUSD_20250606
["ID","MTS","AMOUNT","RATE_DAILY","PERIOD"]
[364703150,1749211853786,-480.0,0.00030164,7]
[364703151,1749211853795,-488.49529513,0.00030164,7]
[364703152,1749211853805,-453.66251753,0.00030164,7]
[364703153,1749211853815,-486.94873946,0.00030164,7]
[364703154,1749211853824,-2000.0,0.00030164,30]
[364703155,1749211853834,-482.7978479,0.00030164,7]
[364703156,1749211853843,-480.0,0.00030164,7]
[364703157,1749211853854,-480.0,0.00030164,7]
[364703158,1749211853863,-491.92044498,0.00030164,7]
[364703159,1749211853873,-480.0,0.00030164,7]
[364703160,1749211853883,-483.65982622,0.00030164,7]
[364703161,1749211853893,-480.0,0.00030164,7]
[364703162,1749211853977,-480.0,0.00030164,7]
[364703163,1749211853986,-480.0,0.00030164,7]
[364703164,1749211853997,-480.0,0.00030164,7]
[364703165,1749211854006,-480.0,0.00030164,7]
[364703166,1749211854016,-339.40009498,0.00030164,7]
[364703167,1749211854026,-495.38243071,0.00030164,7]
[364703168,1749211854035,-480.0,0.00030164,7]
[364703169,1749211854045,-480.0,0.00030164,7]
[364703170,1749211854054,-170.34938031,0.00030164,7]
[364703171,1749211854063,-971.42,0.00030164,7]
[364703172,1749211854073,-480.0,0.00030164,7]
[364703173,1749211854083,-433.26244758,0.00030164,7]
[364703174,1749211854092,-1350.38,0.00030164,7]
[364703175,1749211854104,-480.0,0.00030164,7]
[364703176,1749211854114,-480.0,0.00030164,7]
[364703177,1749211854123,-480.0,0.00030164,7]
[364703178,1749211854133,-480.0,0.00030164,7]
[364703179,1749211854142,-480.0,0.00030164,7]
[364703180,1749211854154,-480.0,0.00030164,7]
[364703181,1749211854163,-482.18080561,0.00030164,7]
[364703182,1749211854173,-480.0,0.00030164,7]
[364703183,1749211854182,-514.85598408,0.00030164,7]
[364703184,1749211854192,-426.45613207,0.00030164,7]
[364703185,1749211854201,-221.5068644,0.00030164,7]
[364703186,1749211854210,-480.89807511,0.00030164,7]
[364703187,1749211854219,-497.91429533,0.00030164,7]
[364703188,1749211854229,-467.38889236,0.00030164,7]
[364703189,1749211854237,-480.0,0.00030164,7]
[364703190,1749211854247,-429.56889342,0.00030164,7]
[364703191,1749211854257,-480.0,0.00030164,7]
[364703192,1749211854266,-486.17086105,0.00030164,7]
[364703193,1749211854275,-480.0,0.00030164,7]
[364703194,1749211854284,-302.18241063,0.00030164,7]
[364703195,1749211854294,-485.37750756,0.00030164,7]
[364703196,1749211854303,-483.31580638,0.00030164,7]
[364703197,1749211854312,-480.0,0.00030164,7]
[364703198,1749211854322,-480.0,0.00030164,7]
[364703199,1749211854331,-844.49,0.00030164,7]
[364703200,1749211854340,-480.0,0.00030164,7]
[364703201,1749211854349,-480.0,0.00030164,7]
[364703202,1749211854358,-488.19165287,0.00030164,7]
[364703203,1749211854367,-558.33,0.00030164,7]
[364703204,1749211854377,-480.0,0.00030164,7]
[364703205,1749211854387,-480.0,0.00030164,7]
[364703206,1749211854397,-480.0,0.00030164,7]
[364703207,1749211854407,-355.56025355,0.00030164,7]
[364703208,1749211854418,-480.0,0.00030164,7]
[364703209,1749211854432,-480.0,0.00030164,7]
[364703210,1749211854445,-480.0,0.00030164,7]
[364703211,1749211854456,-480.0,0.00030164,7]
[364703212,1749211854466,-480.0,0.00030164,7]
[364703213,1749211854475,-480.0,0.00030164,7]
[364703214,1749211854486,-480.0,0.00030164,7]
[364703215,1749211854498,-496.95405679,0.00030164,7]
[364703216,1749211854508,-480.0,0.00030164,7]
[364703217,1749211854517,-480.0,0.00030164,7]
[364703218,1749211854526,-480.0,0.00030164,7]
[364703219,1749211854537,-480.0,0.00030164,7]
[364703220,1749211854546,-480.0,0.00030164,7]
[364703221,1749211854556,-480.0,0.00030164,7]
[364703222,1749211854566,-425.11222773,0.00030164,7]
[364703223,1749211854576,-483.18040379,0.00030164,7]
[364703224,1749211854586,-480.0,0.00030164,7]
[364703225,1749211854596,-489.815117,0.00030164,7]
[364703226,1749211854606,-480.0,0.00030164,7]
[364703227,1749211854616,-480.0,0.00030164,7]
[364703228,1749211854626,-480.0,0.00030164,7]
[364703229,1749211854636,-480.0,0.00030164,7]
[364703230,1749211854645,-489.815117,0.00030164,7]
[364703231,1749211854655,-421.57795427,0.00030164,7]
[364703232,1749211854664,-480.0,0.00030164,7]
[364703233,1749211854674,-489.815117,0.00030164,7]
[364703234,1749211854683,-480.0,0.00030164,7]
[364703235,1749211854692,-489.815117,0.00030164,7]
[364703236,1749211854701,-480.0,0.00030164,7]
[364703237,1749211854710,-494.35060934,0.00030164,7]
[364703238,1749211854720,-480.0,0.00030164,7]
[364703239,1749211854729,-480.0,0.00030164,7]
[364703240,1749211854739,-480.0,0.00030164,7]
[364703241,1749211854750,-480.0,0.00030164,7]
[364703242,1749211854759,-480.0,0.00030164,7]
[364703243,1749211854768,-482.21640135,0.00030164,7]
[364703244,1749211854778,-1206.536297,0.00030164,7]
[364703245,1749211854788,-480.0,0.00030164,7]
[364703246,1749211854798,-1206.536297,0.00030164,7]
[364703247,1749211854808,-1206.536297,0.00030164,7]
[364703248,1749211854818,-1206.536297,0.00030164,7]
[364703249,1749211854828,-489.815117,0.00030164,7]
[364703250,1749211854838,-480.0,0.00030164,7]
[364703251,1749211854848,-489.815117,0.00030164,7]
[364703252,1749211854857,-486.05339023,0.00030164,7]
[364703253,1749211854866,-341.80124131,0.00030164,7]
[364703254,1749211854876,-484.51187732,0.00030164,7]
[364703255,1749211854886,-489.815117,0.00030164,7]
[364703256,1749211854895,-439.50307822,0.00030164,7]
[364703257,1749211854905,-489.815117,0.00030164,7]
[364703258,1749211854914,-486.75731355,0.00030164,7]
[364703259,1749211854924,-1206.536297,0.00030164,7]
[364703260,1749211854933,-1206.536297,0.00030164,7]
[364703261,1749211854943,-480.0,0.00030164,7]
[364703262,1749211854952,-480.0,0.00030164,7]
[364703263,1749211854962,-1206.536297,0.00030164,7]
[364703264,1749211854971,-480.0,0.00030164,7]
[364703265,1749211854981,-1206.536297,0.00030164,7]
[364703266,1749211854991,-845.77,0.00030164,7]
[364703267,1749211855002,-485.15260186,0.00030164,7]
[364703268,1749211855011,-437.21622927,0.00030164,7]
[364703269,1749211855020,-480.0,0.00030164,7]
[364703270,1749211855030,-420.18344827,0.00030164,7]
[364703271,1749211855040,-480.0,0.00030164,7]
[364703272,1749211855049,-480.0,0.00030164,7]
[364703273,1749211855059,-436.16033311,0.00030164,7]
[364703274,1749211855068,-480.0,0.00030164,7]
[364703275,1749211855079,-2319.184753,0.00030164,7]
[364703276,1749211855088,-416.536518,0.00030164,7]
[364703277,1749211855098,-497.07365701,0.00030164,7]
[364703278,1749211855111,-493.41407649,0.00030164,7]
[364703279,1749211855121,-1533.58,0.00030164,7]
[364703280,1749211855131,-416.536518,0.00030164,7]
[364703281,1749211855140,-480.0,0.00030164,7]
[364703282,1749211855151,-480.0,0.00030164,7]
[364703283,1749211855160,-416.536518,0.00030164,7]
[364703284,1749211855170,-416.536518,0.00030164,7]
[364703285,1749211855181,-480.0,0.00030164,7]
[364703286,1749211855192,-480.0,0.00030164,7]
[364703287,1749211855201,-3095.42,0.00030164,7]
[364703288,1749211855211,-500.0,0.00030164,7]
[364703289,1749211855220,-500.0,0.00030164,7]
[364703290,1749211855230,-500.0,0.00030164,7]
[364703291,1749211855239,-500.0,0.00030164,7]
[364703292,1749211855250,-500.0,0.00030164,7]
[364703293,1749211855260,-507.73289218,0.00030164,7]
[364703294,1749211855270,-422.24263036,0.00030164,7]
[364703295,1749211855279,-416.536518,0.00030164,7]
[364703296,1749211855289,-480.0,0.00030164,7]
[364703297,1749211855299,-416.536518,0.00030164,7]
[364703298,1749211855308,-416.536518,0.00030164,7]
[364703299,1749211855318,-480.0,0.00030164,7]
[364703300,1749211855327,-480.0,0.00030164,7]
[364703301,1749211855337,-416.536518,0.00030164,7]
[364703302,1749211855347,-498.67864343,0.00030164,7]
[364703303,1749211855356,-480.0,0.00030164,7]
[364703304,1749211855366,-489.87378188,0.00030164,7]
[364703305,1749211855375,-482.19885845,0.00030164,7]
[364703306,1749211855386,-480.0,0.00030164,7]
[364703307,1749211855397,-563.42,0.00030164,7]
[364703308,1749211855408,-489.21303701,0.00030164,7]
[364703309,1749211855417,-151.0,0.00030164,7]
[364703310,1749211855427,-480.0,0.00030164,7]
[364703311,1749211855437,-151.0,0.00030164,7]
[364703312,1749211855447,-162.836284,0.00030164,7]
[364703313,1749211855458,-151.0,0.00030164,7]
[364703314,1749211855467,-480.0,0.00030164,7]
[364703315,1749211855477,-480.0,0.00030164,7]
[364703316,1749211855487,-151.0,0.00030164,7]
[364703317,1749211855498,-480.0,0.00030164,7]
[364703318,1749211855507,-153.84655,0.00030164,7]
[364703319,1749211855516,-583.17,0.00030164,7]
[364703320,1749211855526,-480.0,0.00030164,7]
[364703321,1749211855535,-349.1518131,0.00030164,7]
[364703322,1749211855546,-480.0,0.00030164,7]
[364703323,1749211855555,-497.24578645,0.00030164,7]
[364703324,1749211855564,-420.0,0.00030164,7]
[364703325,1749211855573,-480.0,0.00030164,7]
[364703326,1749211855584,-480.0,0.00030164,7]
[364703327,1749211855594,-479.90748943,0.00030164,7]
[364703328,1749211855603,-483.35483192,0.00030164,7]
[364703329,1749211855612,-153.0604,0.00030164,7]
[364703330,1749211855621,-480.0,0.00030164,7]
[364703331,1749211855630,-480.0,0.00030164,7]
[364703332,1749211855640,-482.71181895,0.00030164,7]
[364703333,1749211855649,-429.39492447,0.00030164,7]
[364703334,1749211855658,-685.08,0.00030164,7]
[364703335,1749211855667,-480.0,0.00030164,7]
[364703336,1749211855677,-480.0,0.00030164,7]
[364703337,1749211855686,-480.0,0.00030164,7]
[364703338,1749211855695,-470.98776095,0.00030164,7]
[364703339,1749211855704,-480.0,0.00030164,7]
[364703340,1749211855714,-388.32677842,0.00030164,7]
[364703341,1749211855723,-480.0,0.00030164,7]
[364703342,1749211855733,-480.0,0.00030164,7]
[364703343,1749211855742,-480.0,0.00030164,7]
[364703344,1749211855751,-647.81,0.00030164,7]
[364703345,1749211855760,-486.47232307,0.00030164,7]
[364703346,1749211855769,-480.0,0.00030164,7]
[364703347,1749211855778,-480.0,0.00030164,7]
[364703348,1749211855787,-480.0,0.00030164,7]
[364703349,1749211855797,-424.37092884,0.00030164,7]
[364703350,1749211855807,-480.0,0.00030164,7]
[364703351,1749211855816,-480.0,0.00030164,7]
[364703352,1749211855826,-463.35635532,0.00030164,7]
[364703353,1749211855835,-480.0,0.00030164,7]
[364703354,1749211855844,-633.72,0.00030164,7]
[364703355,1749211855853,-480.0,0.00030164,7]
[364703356,1749211855863,-481.55726094,0.00030164,7]
[364703357,1749211855872,-771.47,0.00030164,7]
[364703358,1749211855882,-480.0,0.00030164,7]
[364703359,1749211855891,-480.0,0.00030164,7]
[364703360,1749211855900,-383.41112128,0.00030164,7]
[364703361,1749211855910,-480.0,0.00030164,7]
[364703362,1749211855919,-2492.618354,0.00030164,7]
[364703363,1749211855928,-480.0,0.00030164,7]
[364703364,1749211855938,-480.0,0.00030164,7]
[364703365,1749211855947,-425.80705989,0.00030164,7]
[364703366,1749211855957,-480.0,0.00030164,7]
[364703367,1749211855966,-480.0,0.00030164,7]
[364703368,1749211855976,-480.0,0.00030164,7]
[364703369,1749211855985,-480.0,0.00030164,7]
[364703370,1749211855994,-291.935234,0.00030164,7]
[364703371,1749211856004,-486.02065922,0.00030164,7]
[364703372,1749211856014,-480.0,0.00030164,7]
[364703373,1749211856023,-480.0,0.00030164,7]
[364703374,1749211856032,-291.935234,0.00030164,7]
[364703375,1749211856042,-291.935234,0.00030164,7]
[364703376,1749211856051,-480.0,0.00030164,7]
[364703377,1749211856060,-291.935234,0.00030164,7]
[364703378,1749211856070,-486.31721398,0.00030164,7]
[364703379,1749211856079,-1859.07,0.00030164,7]
[364703380,1749211856089,-480.0,0.00030164,7]
[364703381,1749211856099,-1566.327545,0.00030164,7]
[364703382,1749211856112,-480.0,0.00030164,7]
[364703383,1749211856121,-502.36948059,0.00030164,7]
[364703384,1749211856130,-1566.327545,0.00030164,7]
[364703385,1749211856139,-480.0,0.00030164,7]
[364703386,1749211856149,-422.38132047,0.00030164,7]
[364703387,1749211856158,-1566.327545,0.00030164,7]
[364703388,1749211856167,-1566.327545,0.00030164,7]
[364703389,1749211856177,-825.43,0.00030164,7]
[364703390,1749211856188,-480.0,0.00030164,7]
[364703391,1749211856197,-480.0,0.00030164,7]
[364703392,1749211856207,-291.935234,0.00030164,7]
[364703393,1749211856216,-500.0,0.00030164,2]
[364703394,1749211856226,-500.0,0.00030164,2]
[364703395,1749211856235,-500.0,0.00030164,2]
[364703396,1749211856245,-291.935234,0.00030164,7]
[364703397,1749211856254,-500.0,0.00030164,2]
[364703398,1749211856264,-291.935234,0.00030164,7]
[364703399,1749211856274,-500.0,0.00030164,2]
[364703400,1749211856284,-500.0,0.00030164,2]
[364703401,1749211856293,-291.935234,0.00030164,7]
[364703402,1749211856303,-500.0,0.00030164,2]
[364703403,1749211856312,-500.0,0.00030164,2]
[364703404,1749211856322,-480.0,0.00030164,7]
[364703405,1749211856332,-480.0,0.00030164,7]
[364703406,1749211856341,-500.0,0.00030164,2]
[364703407,1749211856350,-1566.327545,0.00030164,7]
[364703408,1749211856360,-500.0,0.00030164,2]
[364703409,1749211856369,-1566.327545,0.00030164,7]
[364703410,1749211856379,-500.0,0.00030164,2]
[364703411,1749211856388,-500.0,0.00030164,2]
[364703412,1749211856397,-1566.327545,0.00030164,7]
[364703413,1749211856407,-500.0,0.00030164,2]
[364703414,1749211856418,-151.0,0.00030164,7]
[364703415,1749211856427,-198.50993725,0.00030164,2]
[364703416,1749211856441,-151.0,0.00030164,7]
[364703417,1749211856451,-1566.327545,0.00030164,7]
[364703418,1749211856461,-535.50367172,0.00030164,7]
[364703419,1749211856471,-480.0,0.00030164,7]
[364703420,1749211856480,-489.29238845,0.00030164,7]
[364703421,1749211856490,-527.72962559,0.00030164,7]
[364703422,1749211856500,-840.73,0.00030164,7]
[364703423,1749211856510,-480.0,0.00030164,7]
[364703424,1749211856519,-480.0,0.00030164,7]
[364703425,1749211856528,-480.0,0.00030164,7]
[364703426,1749211856537,-965.76,0.00030164,7]
[364703427,1749211856547,-480.0,0.00030164,7]
[364703428,1749211856557,-1096.05,0.00030164,7]
[364703429,1749211856566,-484.39203584,0.00030164,7]
[364703430,1749211856576,-490.70700859,0.00030164,7]
[364703431,1749211856586,-480.0,0.00030164,7]
[364703432,1749211856595,-500.0,0.00030164,7]
[364703433,1749211856605,-480.0,0.00030164,7]
[364703434,1749211856615,-500.0,0.00030164,7]
[364703435,1749211856625,-463.00953548,0.00030164,7]
[364703436,1749211856634,-500.0,0.00030164,7]
[364703437,1749211856644,-500.0,0.00030164,7]
[364703438,1749211856653,-500.0,0.00030164,7]
[364703439,1749211856663,-500.0,0.00030164,7]
[364703440,1749211856673,-500.0,0.00030164,7]
[364703441,1749211856683,-481.2423928,0.00030164,7]
[364703442,1749211856692,-498.46259307,0.00030164,7]
[364703443,1749211856702,-480.0,0.00030164,7]
[364703444,1749211856712,-480.0,0.00030164,7]
[364703445,1749211856722,-393.18905018,0.00030164,7]
[364703446,1749211856733,-480.0,0.00030164,7]
[364703447,1749211856743,-975.0,0.00030164,7]
[364703448,1749211856753,-1571.91,0.00030164,7]
[364703449,1749211856763,-555.23,0.00030164,7]
[364703450,1749211856773,-482.4439344,0.00030164,7]
[364703451,1749211856782,-151.0,0.00030164,7]
[364703452,1749211856791,-151.0,0.00030164,7]
[364703453,1749211856802,-487.19512927,0.00030164,7]
[364703454,1749211856811,-151.0,0.00030164,7]
[364703455,1749211856821,-480.0,0.00030164,7]
[364703456,1749211856830,-480.0,0.00030164,7]
[364703457,1749211856840,-151.0,0.00030164,7]
[364703458,1749211856850,-480.0,0.00030164,7]
[364703459,1749211856859,-480.0,0.00030164,7]
[364703460,1749211856868,-480.0,0.00030164,7]
[364703461,1749211856879,-480.0,0.00030164,7]
[364703462,1749211856888,-480.0,0.00030164,7]
[364703463,1749211856898,-480.0,0.00030164,7]
[364703464,1749211856908,-491.90229553,0.00030164,7]
[364703465,1749211856917,-484.01917455,0.00030164,7]
[364703466,1749211856927,-151.0,0.00030164,7]
[364703467,1749211856937,-151.0,0.00030164,7]
[364703468,1749211856946,-480.0,0.00030164,7]
[364703469,1749211856956,-151.0,0.00030164,7]
[364703470,1749211856966,-1149.26,0.00030164,7]
[364703471,1749211856975,-481.92158103,0.00030164,7]
[364703472,1749211856985,-151.0,0.00030164,7]
[364703473,1749211856995,-480.0,0.00030164,7]
[364703474,1749211857005,-758.59,0.00030164,7]
[364703475,1749211857015,-482.18690529,0.00030164,7]
[364703476,1749211857025,-2000.0,0.00030164,7]
[364703477,1749211857034,-1000.0,0.00030164,7]
[364703478,1749211857044,-484.6400219,0.00030164,7]
[364703479,1749211857054,-485.80005832,0.00030164,7]
[364703480,1749211857064,-480.0,0.00030164,7]
[364703481,1749211857073,-480.0,0.00030164,7]
[364703482,1749211857083,-347.980849,0.00030164,7]
[364703483,1749211857093,-347.980849,0.00030164,7]
[364703484,1749211857104,-347.980849,0.00030164,7]
[364703485,1749211857114,-486.25828105,0.00030164,7]
[364703486,1749211857123,-347.980849,0.00030164,7]
[364703487,1749211857132,-480.0,0.00030164,7]
[364703488,1749211857142,-480.0,0.00030164,7]
[364703489,1749211857152,-392.66732608,0.00030164,7]
[364703490,1749211857161,-1051.09,0.00030164,7]
[364703491,1749211857170,-347.980849,0.00030164,7]
[364703492,1749211857181,-480.0,0.00030164,7]
[364703493,1749211857190,-480.0,0.00030164,7]
[364703494,1749211857199,-347.980849,0.00030164,7]
[364703495,1749211857211,-480.0,0.00030164,7]
[364703496,1749211857220,-480.0,0.00030164,7]
[364703497,1749211857231,-347.980849,0.00030164,7]
[364703498,1749211857241,-347.980849,0.00030164,7]
[364703499,1749211857250,-480.0,0.00030164,7]
[364703500,1749211857259,-480.0,0.00030164,7]
[364703501,1749211857269,-480.0,0.00030164,7]
[364703502,1749211857278,-480.0,0.00030164,7]
[364703503,1749211857288,-480.0,0.00030164,7]
[364703504,1749211857297,-480.0,0.00030164,7]
[364703505,1749211857307,-606.93062687,0.00030164,7]
[364703506,1749211857317,-500.0,0.00030164,7]
[364703507,1749211857326,-500.0,0.00030164,7]
[364703508,1749211857336,-480.0,0.00030164,7]
[364703509,1749211857345,-500.0,0.00030164,7]
[364703510,1749211857355,-500.0,0.00030164,7]
[364703511,1749211857364,-174.4126255,0.00030164,7]
[364703512,1749211857374,-426.90771548,0.00030164,7]
[364703513,1749211857383,-1711.11,0.00030164,7]
[364703514,1749211857394,-1963.97,0.00030164,7]
[364703515,1749211857404,-528.03379447,0.00030164,7]
[364703516,1749211857414,-480.0,0.00030164,7]
[364703517,1749211857424,-1629.71,0.00030164,7]
[364703518,1749211857434,-425.16615008,0.00030164,7]
[364703519,1749211857443,-480.0,0.00030164,7]
[364703520,1749211857453,-480.0,0.00030164,7]
[364703521,1749211857463,-480.0,0.00030164,7]
[364703522,1749211857473,-420.0,0.00030164,7]
[364703523,1749211857483,-480.0,0.00030164,7]
[364703524,1749211857493,-480.0,0.00030164,7]
[364703525,1749211857503,-480.0,0.00030164,7]
[364703526,1749211857512,-860.5,0.00030164,7]
[364703527,1749211857522,-480.0,0.00030164,7]
[364703528,1749211857532,-480.0,0.00030164,7]
[364703529,1749211857541,-480.0,0.00030164,7]
[364703530,1749211857551,-480.0,0.00030164,7]
[364703531,1749211857561,-480.0,0.00030164,7]
[364703532,1749211857571,-480.0,0.00030164,7]
[364703533,1749211857581,-501.22796512,0.00030164,7]
[364703534,1749211857591,-485.40579763,0.00030164,7]
[364703535,1749211857600,-480.0,0.00030164,7]
[364703536,1749211857610,-484.33830044,0.00030164,7]
[364703537,1749211857620,-2084.64,0.00030164,7]
[364703538,1749211857630,-480.0,0.00030164,7]
[364703539,1749211857639,-463.74791543,0.00030164,7]
[364703540,1749211857650,-486.50299451,0.00030164,7]
[364703541,1749211857659,-480.0,0.00030164,7]
[364703542,1749211857668,-480.0,0.00030164,7]
[364703543,1749211857678,-338.86547354,0.00030164,7]
[364703544,1749211857687,-1315.9,0.00030164,7]
[364703545,1749211857697,-1467.03,0.00030164,7]
[364703546,1749211857706,-480.0,0.00030164,7]
[364703547,1749211857716,-491.46711055,0.00030164,7]
[364703548,1749211857726,-480.0,0.00030164,7]
[364703549,1749211857736,-480.0,0.00030164,7]
[364703550,1749211857746,-483.11270371,0.00030164,7]
[364703551,1749211857756,-776.15,0.00030164,7]
[364703552,1749211857765,-484.28061092,0.00030164,7]
[364703553,1749211857775,-482.08396667,0.00030164,7]
[364703554,1749211857784,-558.23,0.00030164,7]
[364703555,1749211857794,-480.0,0.00030164,7]
[364703556,1749211857804,-480.0,0.00030164,7]
[364703557,1749211857814,-480.0,0.00030164,7]
[364703558,1749211857823,-963.42,0.00030164,7]
[364703559,1749211857833,-480.0000002,0.00030164,7]
[364703560,1749211857842,-480.0,0.00030164,7]
[364703561,1749211857852,-485.58666464,0.00030164,7]
[364703562,1749211857862,-480.0,0.00030164,7]
[364703563,1749211857871,-480.0,0.00030164,7]
[364703564,1749211857881,-365.53346045,0.00030164,7]
[364703565,1749211857891,-480.0,0.00030164,7]
[364703566,1749211857900,-151.0,0.00030164,7]
[364703567,1749211857910,-480.0,0.00030164,7]
[364703568,1749211857919,-151.0,0.00030164,7]
[364703569,1749211857929,-151.0,0.00030164,7]
[364703570,1749211857938,-151.0,0.00030164,7]
[364703571,1749211857948,-480.0,0.00030164,7]
[364703572,1749211857957,-494.9345283,0.00030164,7]
[364703573,1749211857967,-480.0,0.00030164,7]
[364703574,1749211857976,-480.0,0.00030164,7]
[364703575,1749211857986,-480.0,0.00030164,7]
[364703576,1749211857996,-943.56,0.00030164,7]
[364703577,1749211858006,-480.0,0.00030164,7]
[364703578,1749211858016,-404.46508848,0.00030164,7]
[364703579,1749211858026,-424.51669055,0.00030164,7]
[364703580,1749211858036,-602.45845138,0.00030164,7]
[364703581,1749211858046,-480.0,0.00030164,7]
[364703582,1749211858056,-480.0,0.00030164,7]
[364703583,1749211858067,-428.0309045,0.00030164,7]
[364703584,1749211858077,-480.0,0.00030164,7]
[364703585,1749211858088,-480.0,0.00030164,7]
[364703586,1749211858100,-400.0,0.00030164,7]
[364703587,1749211858112,-515.07,0.00030164,7]
[364703588,1749211858122,-429.53819856,0.00030164,7]
[364703589,1749211858132,-480.0,0.00030164,7]
[364703590,1749211858143,-480.0,0.00030164,7]
[364703591,1749211858153,-480.0,0.00030164,7]
[364703592,1749211858163,-480.0,0.00030164,7]
[364703593,1749211858179,-480.0,0.00030164,7]
[364703594,1749211858189,-443.50280836,0.00030164,7]
[364703595,1749211858199,-1002.22289094,0.00030164,42]
[364703596,1749211858209,-2223.09,0.00030164,7]
[364703597,1749211858219,-480.0,0.00030164,7]
[364703598,1749211858229,-493.81184276,0.00030164,7]
[364703599,1749211858239,-937.77,0.00030164,7]
[364703600,1749211858249,-480.0,0.00030164,7]
[364703601,1749211858259,-1103.59,0.00030164,7]
[364703602,1749211858269,-480.0,0.00030164,7]
[364703603,1749211858279,-480.0,0.00030164,7]
[364703604,1749211858288,-300.0,0.00030164,7]
[364703605,1749211858298,-480.0,0.00030164,7]
[364703606,1749211858308,-1248.93807235,0.00030164,30]
[364703607,1749211858317,-485.89271139,0.00030164,7]
[364703608,1749211858326,-480.0,0.00030164,7]
[364703609,1749211858336,-480.0,0.00030164,7]
[364703610,1749211858347,-422.98572044,0.00030164,7]
[364703611,1749211858358,-480.0,0.00030164,7]
[364703612,1749211858368,-484.16367605,0.00030164,7]
[364703613,1749211858378,-480.0,0.00030164,7]
[364703614,1749211858388,-353.00986309,0.00030164,7]
[364703617,1749212001264,692.0298578,0.0003561,120]
[364703618,1749212040068,200.0,0.00035616,120]
[364703619,1749212074397,200.0,0.00035616,120]
[364703622,1749212238873,155.82,0.00013699,2]
[364703624,1749212500327,235.0,0.00035616,120]
[364703626,1749212598326,1500.0,0.00035,120]
[364703629,1749212708395,1511.56383276,0.0002,2]
[364703630,1749212708422,2853.76383276,0.0002,2]
[364703631,1749212708445,2853.76383276,0.0002,2]
[364703632,1749212708469,2853.76383276,0.0002,2]
[364703633,1749212708494,2853.76383276,0.0002,2]
[364703634,1749212708520,2853.76383276,0.0002,2]
[364703635,1749212708544,2853.76383276,0.0002,2]
[364703636,1749212708567,2853.76383276,0.0002,2]
[364703637,1749212708595,4323.08855537,0.0002,2]
[364703638,1749212708617,10000.0,0.0002,2]
[364703639,1749212708639,10000.0,0.0002,2]
[364703640,1749212708661,10000.0,0.0002,2]
[364703641,1749212708683,2783.70511798,0.0002,2]
[364703644,1749212710719,836.30571687,0.000154,2]
[364703646,1749212728887,155.19,0.00029069,120]
[364703647,1749212736766,6379.98916515,9e-05,2]
[364703648,1749212736788,9745.24239235,9e-05,2]
[364703659,1749212817214,254.75760765,0.00015,14]
[364703660,1749212817235,718.90778944,0.00015,14]
[364703677,1749212876200,511.41252396,0.00015,2]
[364703678,1749212876320,209.87651859,0.000181,2]
[364703680,1749212878239,8559.80316801,0.0002,2]
[364703681,1749212878260,10000.0,0.0002,2]
[364703682,1749212878281,10000.0,0.0002,2]
[364703683,1749212878302,10000.0,0.0002,2]
[364703684,1749212878322,10000.0,0.0002,2]
[364703685,1749212878342,10000.0,0.0002,2]
[364703686,1749212878363,10000.0,0.0002,2]
[364703687,1749212878384,10000.0,0.0002,2]